fUST/lending_fUST_20250829
["ID","MTS","AMOUNT","RATE_DAILY","PERIOD"]
[381964353,1756455046834,-2151.0,0.00034873,2]
[381964355,1756455046843,-632.0,0.00034873,2]
[381964357,1756455046852,-990.21950091,0.00034917,5]
[381964359,1756455046862,-409.0,0.00034972,2]
[381964361,1756455046871,-200.0,0.000352,120]
[381964363,1756455046880,-206.137685,0.00035504,2]
[381964365,1756455046889,-189.48661902,0.00035616,2]
[381964366,1756455046898,-1387.56200405,0.0003566,2]
[381964368,1756455046909,-800.0,0.00035836,7]
[381964369,1756455046918,-694.74595934,0.00036137,4]
[381964370,1756455046928,-200.0,0.00036675,120]
[381964372,1756455046938,-150.113824,0.0003675,5]
[381964374,1756455046948,-161.0,0.000368,60]
[381964376,1756455046958,-500.0,0.00036937,2]
[381964377,1756455046969,-500.0,0.00036937,2]
[381964379,1756455046979,-151.0,0.00036937,2]
[381964380,1756455046989,-500.0,0.00036937,2]
[381964381,1756455047001,-151.0,0.00036937,2]
[381964382,1756455047011,-500.0,0.00036937,2]
[381964383,1756455047021,-151.0,0.00036937,2]
[381964384,1756455047031,-151.0,0.00036937,2]
[381964385,1756455047045,-500.0,0.00036937,2]
[381964386,1756455047055,-151.0,0.00036937,2]
[381964387,1756455047065,-500.0,0.00036937,2]
[381964388,1756455047076,-151.0,0.00036937,2]
[381964389,1756455047085,-151.0,0.00036937,2]
[381964390,1756455047095,-500.0,0.00036937,2]
[381964391,1756455047105,-151.0,0.00036937,2]
[381964392,1756455047116,-519.72023464,0.00036937,2]
[381964393,1756455047126,-151.0,0.00036937,2]
[381964394,1756455047136,-151.0,0.00036937,2]
[381964395,1756455047146,-151.0,0.00036937,2]
[381964396,1756455047156,-151.0,0.00036937,2]
[381964397,1756455047166,-151.0,0.00036937,2]
[381964398,1756455047176,-151.0,0.00036937,2]
[381964399,1756455047186,-200.0,0.000372,120]
[381964400,1756455047196,-150.113824,0.0003745,20]
[381964401,1756455047206,-155.0,0.000375,120]
[381964402,1756455047215,-845.57753514,0.00037588,7]
[381964403,1756455047226,-160.0,0.00037588,7]
[381964404,1756455047235,-216.21406313,0.00037588,7]
[381964405,1756455047245,-161.0,0.000378,120]
[381964406,1756455047261,-974.0,0.00037873,2]
[381964407,1756455047271,-2151.0,0.00037873,2]
[381964408,1756455047280,-632.0,0.00037873,2]
[381964409,1756455047290,-409.0,0.00037972,2]
[381964410,1756455047300,-349.108715,0.00038347,2]
[381964411,1756455047309,-1780.16,0.00038356,120]
[381964412,1756455047319,-160.080606,0.00038356,2]
[381964413,1756455047329,-1387.56200405,0.0003858,2]
[381964414,1756455047339,-1780.16,0.00038904,120]
[381964415,1756455047349,-206.137685,0.00038929,2]
[381964416,1756455047359,-200.0,0.000392,120]
[381964417,1756455047368,-446.34063144,0.00039315,5]
[381964418,1756455047377,-1780.16,0.00039452,120]
[381964419,1756455047387,-201.0,0.0003951,52]
[381964420,1756455047396,-150.113824,0.00039561,10]
[381964422,1756455047406,-200.0,0.0003977,120]
[381964424,1756455047415,-200.0,0.0003977,120]
[381964426,1756455047424,-810.09644179,0.00039804,7]
[381964428,1756455047433,-3626.956295,0.000399,120]
[381964430,1756455047443,-151.0,0.000399,30]
[381964432,1756455047453,-151.0,0.000399,30]
[381964434,1756455047463,-9348.40308429,0.000399,2]
[381964436,1756455047472,-529.77114056,0.000399,120]
[381964438,1756455047482,-588.67485233,0.000399,2]
[381964440,1756455047491,-845.57753514,0.000399,120]
[381964442,1756455047504,-164.37066337,0.000399,120]
[381964444,1756455047513,-417.15472785,0.000399,120]
[381964446,1756455047522,-160.0,0.000399,120]
[381964448,1756455047532,-216.21406313,0.000399,120]
[381964450,1756455047541,-500.0,0.00039973,5]
[381964452,1756455047551,-160.0,0.0003999,3]
[381964454,1756455047561,-160.0,0.0003999,3]
[381964456,1756455047571,-845.57753514,0.0003999,3]
[381964458,1756455047580,-160.0,0.0003999,3]
[381964460,1756455047589,-404.74914167,0.00039999,31]
[381964462,1756455047600,-404.49316998,0.00039999,31]
[381964464,1756455047611,-769018.14784731,0.0004,120]
[381964467,1756455047623,-3888.42820468,0.0004,120]
[381964469,1756455047635,-110075.4097444,0.0004,120]
[381965167,1756455827616,163.226937,0.00013699,2]
[381965169,1756455959129,-1530.3759991,0.00019986,2]
[381965172,1756456026123,-256.08606036,0.00019986,2]
[381965173,1756456027076,-264.07159326,0.00019986,2]
[381965174,1756456037125,-427.18873518,0.00019986,2]
[381965175,1756456038094,-1844.5194738,0.00019986,2]
[381965176,1756456053096,-677.7581383,0.00019986,2]
[381965177,1756456053119,-163.226937,0.00020187,2]
[381965178,1756456053140,-216.21406313,0.00024,7]
[381965179,1756456053160,-219.16183121,0.00024204,2]
[381965180,1756456053181,-216.21406313,0.00025,10]
[381965181,1756456053205,-2.65273111,0.00026676,2]
[381965184,1756456150093,-5000.0,0.00019786,2]
[381965185,1756456173086,-5000.0,0.00024526,6]
[381965186,1756456173107,-2081.87378226,0.00024774,2]
[381965187,1756456173128,-155.39499642,0.00026576,2]
[381965188,1756456173149,-160.57420589,0.00026676,2]
[381965189,1756456173170,-300.0,0.00026847,2]
[381965190,1756456173192,-1200.0,0.00026848,2]
[381965191,1756456191367,5000.0,0.00024953,6]
[381965192,1756456214059,484.12730908,0.00024953,6]
[381965236,1756456231987,-1106.8,0.00024953,6]
[381965240,1756456232017,-204.9466082,0.00024953,6]
[381965243,1756456232029,-3204.12608272,0.00024953,6]
[381965245,1756456232038,-216.21406313,0.00025,10]
[381965247,1756456232048,-380.0,0.00026929,2]
[381965249,1756456232057,-666.0,0.00026995,2]
[381965251,1756456232066,-1200.0,0.00026998,2]
[381965253,1756456232075,-425.57542551,0.00027,7]
[381965255,1756456232085,-150.3,0.00027123,7]
[381965257,1756456232094,-150.3,0.00027223,7]
[381965259,1756456232103,-150.3,0.00027323,7]
[381965261,1756456232112,-300.0,0.00027361,2]
[381965263,1756456232121,-10000.0,0.00027362,2]
[381965265,1756456232131,-500.0,0.00027397,5]
[381965267,1756456232139,-150.3,0.00027423,15]
[381965269,1756456232148,-150.3,0.00027523,15]
[381965271,1756456232158,-150.3,0.00027623,15]
[381965273,1756456232166,-150.3,0.00027723,15]
[381965274,1756456232176,-150.3,0.00027823,15]
[381965276,1756456232185,-160.0,0.00027881,2]
[381965279,1756456232195,-160.0,0.00027881,2]
[381965281,1756456232204,-217.30324474,0.00027881,2]
[381965283,1756456232214,-160.0,0.00027881,2]
[381965285,1756456232223,-160.0,0.00027881,2]
[381965287,1756456232232,-232.6790651,0.00027881,2]
[381965289,1756456232242,-216.21406313,0.00027881,2]
[381965291,1756456232252,-2311.97,0.00027922,4]
[381965293,1756456232263,-150.3,0.00027923,15]
[381965294,1756456232273,-151.0,0.00027945,7]
[381965296,1756456232282,-151.0,0.00027945,7]
[381965298,1756456232291,-191.0,0.00027945,7]
[381965300,1756456232300,-271.85917165,0.00027982,2]
[381965302,1756456232309,-160.0,0.00028,7]
[381965304,1756456232320,-160.0,0.00028,7]
[381965306,1756456232329,-160.0,0.00028,7]
[381965308,1756456232338,-160.0,0.00028,7]
[381965310,1756456232347,-312.851,0.00028,18]
[381965312,1756456232357,-232.6790651,0.00028,7]
[381965314,1756456232366,-425.57542551,0.00028,10]
[381965316,1756456232375,-217.30324474,0.00028,7]
[381965318,1756456232384,-150.3,0.00028023,15]
[381965320,1756456232394,-150.3,0.00028123,15]
[381965322,1756456232404,-150.3,0.00028223,15]
[381965324,1756456232413,-150.3,0.00028323,15]
[381965326,1756456232422,-150.3,0.00028423,15]
[381965328,1756456232432,-150.3,0.00028523,15]
[381965330,1756456232441,-150.3,0.00028623,15]
[381965332,1756456232450,-150.3,0.00028723,15]
[381965334,1756456232460,-150.3,0.00028823,15]
[381965336,1756456232469,-150.3,0.00028923,15]
[381965338,1756456232478,-500.0,0.0002895,5]
[381965340,1756456232487,-349.0,0.0002895,5]
[381965342,1756456232497,-500.0,0.0002895,5]
[381965344,1756456232506,-500.0,0.0002895,5]
[381965346,1756456232515,-500.0,0.0002895,5]
[381965348,1756456232524,-160.0,0.00029,10]
[381965350,1756456232535,-160.0,0.00029,10]
[381965352,1756456232544,-160.0,0.00029,10]
[381965354,1756456232553,-232.6790651,0.00029,10]
[381965356,1756456232568,-217.30324474,0.00029,10]
[381965359,1756456232579,-150.3,0.00029023,15]
[381965360,1756456232588,-502.40259465,0.00029023,5]
[381965362,1756456232598,-517.98037952,0.00029023,5]
[381965364,1756456232607,-500.0,0.00029023,5]
[381965366,1756456232616,-504.08032246,0.00029023,5]
[381965368,1756456232625,-150.3,0.00029123,15]
[381965370,1756456232634,-150.3,0.00029223,15]
[381965372,1756456232644,-150.3,0.00029323,15]
[381965374,1756456232653,-290.88849762,0.0002955,5]
[381965376,1756456232662,-191.543402,0.00029589,120]
[381965378,1756456232672,-2606.26,0.0002989,60]
[381965380,1756456232681,-2851.255427,0.0002989,2]
[381965382,1756456232690,-782.87934545,0.00029896,2]
[381965384,1756456232700,-1364.67643307,0.00029996,6]
[381965733,1756456238108,-4908.21606664,0.00024953,6]
[381965736,1756456238120,-91.78393336,0.00024953,6]
[381965738,1756456238129,-199.0,0.00029489,120]
[381965740,1756456238138,-360.84808862,0.00029889,2]
[381965778,1756456238488,-139.15191138,0.00029889,2]
[381965780,1756456238497,-500.0,0.00029889,2]
[381965782,1756456238507,-500.0,0.00029889,2]
[381965784,1756456238516,-612.23572717,0.00029889,2]
[381965786,1756456238525,-500.0,0.00029889,2]
[381965788,1756456238534,-430.0037262,0.00029889,2]
[381965790,1756456238543,-2635.32356693,0.00029996,6]
[381965792,1756456238552,-501.48078006,0.0003,5]
[381965794,1756456238564,-632.0,0.00030164,2]
[381965796,1756456238574,-2151.0,0.00030164,2]
[381965798,1756456238583,-409.0,0.00030164,2]
[381965800,1756456238592,-974.0,0.00030164,2]
[381965802,1756456238601,-979.06303341,0.000302,2]
[381965804,1756456238610,-199.0,0.00030363,120]
[381965805,1756456238619,-199.0,0.00030363,120]
[381965806,1756456238628,-302.81638562,0.0003099,2]
[381965807,1756456238638,-15017.76744948,0.000319,2]
[381965808,1756456238647,-500.0,0.00032877,5]
[381965809,1756456238657,-1156.01688458,0.00033,2]
[381965810,1756456238666,-632.0,0.00033164,2]
[381965811,1756456238675,-1596.69053544,0.00033164,2]
[381965812,1756456238687,-554.30946456,0.00033164,2]
[381965813,1756456238696,-409.0,0.00033164,2]
[381965814,1756456238706,-974.0,0.00033164,2]
[381965815,1756456238716,-163.226937,0.00033165,2]
[381965816,1756456238725,-172.65869681,0.000332,117]
[381965817,1756456238735,-172.6586968,0.000332,117]
[381965818,1756456238745,-782.8793454,0.00033325,2]
[381965819,1756456238755,-199.0,0.00033698,7]
[381965820,1756456238764,-172.6586968,0.00033714,119]
[381965821,1756456238774,-181.71779835,0.00033864,11]
[381965822,1756456238784,-500.0,0.00034567,5]
[381965823,1756456238793,-579.47660784,0.00034973,5]
[381965824,1756456238802,-500.0,0.00034973,5]
[381965825,1756456238812,-506.70549559,0.00035,120]
[381965826,1756456238822,-201.09949816,0.00035,2]
[381965827,1756456238831,-10640.22867945,0.00035,2]
[381965828,1756456238841,-652.99782251,0.00035,2]
[381965829,1756456238851,-1817.77515211,0.00035,2]
[381965830,1756456238861,-159.77620197,0.00035616,2]
[381965831,1756456238870,-500.0,0.0003579,5]
[381965832,1756456238880,-632.0,0.00036164,2]
[381965833,1756456238889,-2151.0,0.00036164,2]
[381965834,1756456238899,-409.0,0.00036164,2]
[381965835,1756456238908,-974.0,0.00036164,2]
[381965836,1756456238917,-202.88298881,0.0003621,2]
[381965837,1756456238926,-263.8935353,0.0003624,2]
[381965838,1756456238937,-150.212877,0.0003675,5]
[381965839,1756456238947,-782.8793454,0.00036754,2]
[381965840,1756456238958,-307.23906316,0.00036937,2]
[381965841,1756456238967,-1227.7272964,0.00036937,2]
[381965842,1756456238978,-227.0402164,0.00036937,2]
[381965843,1756456238986,-907.25270472,0.00036937,2]
[381965844,1756456238997,-486.0,0.000371,2]
[381965845,1756456239007,-1012.34626308,0.000378,2]
[381965846,1756456239017,-188.93,0.0003799,10]
[381965847,1756456239026,-157.44,0.0003799,10]
[381965848,1756456239036,-1178.55479607,0.00038,2]
[381965849,1756456239045,-103747.5055555,0.00038,120]
[381965859,1756456239909,-199.0,0.00029489,120]
[381965861,1756456239919,-3218.05110544,0.00038,120]
[381965877,1756456240066,-29.34128814,0.00038,120]
[381965984,1756456243219,-170.04177768,0.00034964,2]
[381966015,1756456245924,-8.47211732,0.00034964,2]
[381966017,1756456245935,-50890.42309452,0.00038,120]
[381966019,1756456245944,-1000.0,0.00038,2]
[381966021,1756456245953,-216.21406313,0.00038,120]
[381966023,1756456245964,-251.9580792,0.0003868,15]
[381966025,1756456245973,-743.21001078,0.000387,120]
[381966027,1756456245983,-3532.04911402,0.0003888,2]
[381966029,1756456245992,-787.22,0.0003897,10]
[381966031,1756456246001,-5224.70413947,0.0003898,3]
[381966033,1756456246013,-1529.45822257,0.0003898,3]
[381966041,1756456246083,-45203.543795,0.0003898,3]
[381966045,1756456246115,-47.46541502,0.0003898,3]
[381966713,1756456728868,182.8,0.00017,2]
[381966716,1756456846929,163.226937,0.00013699,2]
[381966721,1756457022228,-1000.0,0.00019681,2]
[381966723,1756457240335,-289.76724409,0.00019289,2]
[381966724,1756457241108,-160.20330111,0.00019289,2]
[381966729,1756457346323,-5000.0,0.00018905,2]
[381966730,1756457346346,-1754.84105853,0.00019096,2]
[381966731,1756457346367,-2001.4820347,0.000195,2]
[381966732,1756457346386,-351.64118097,0.0001988,2]
[381966733,1756457346407,-163.226937,0.00021918,2]
[381966775,1756457432138,-425.57542551,0.00027,7]
[381966777,1756457432148,-425.57542551,0.00027,7]
[381966779,1756457432157,-425.57542551,0.00028,10]
[381966780,1756457432166,-425.57542551,0.00028,10]
[381966781,1756457432174,-425.57542551,0.00028,10]
[381966782,1756457432183,-217.30324474,0.00029,10]
[381966783,1756457432193,-500.0,0.000297,5]
[381966784,1756457432203,-5000.0,0.00029836,2]
[381966785,1756457432212,-387.13000025,0.0002989,4]
[381966786,1756457432221,-483.68962746,0.00029975,5]
[381966787,1756457432270,-120.5471961,0.00029975,5]
[381966790,1756457432284,-163.226937,0.00030137,2]
[381966791,1756457432294,-141.81252626,0.00030248,5]
[381966812,1756457434616,2772.57196887,0.00024953,2]
[381966831,1756457438321,-2227.42803113,0.00024953,2]
[381966832,1756457438331,-358.18747374,0.00030248,5]
[381966833,1756457438340,-680.3033226,0.00031214,2]
[381966834,1756457438350,-191.543402,0.00031255,120]
[381966835,1756457438360,-417.15472785,0.00031272,2]
[381966836,1756457438370,-160.0,0.00031272,2]
[381966837,1756457438380,-160.0,0.00031272,2]
[381966838,1756457438390,-217.30324474,0.00031272,2]
[381966839,1756457438401,-160.0,0.00031272,2]
[381966840,1756457438410,-216.21406313,0.00031272,2]
[381966841,1756457438419,-240.36769687,0.00031436,2]
[381966842,1756457438435,-733.63230313,0.00031436,2]
[381966843,1756457438444,-632.0,0.00031436,2]
[381966844,1756457438454,-2151.0,0.00031436,2]
[381966845,1756457438464,-409.0,0.00031436,2]
[381966846,1756457438474,-150.0,0.00031436,2]
[381966847,1756457438484,-150.212877,0.00032686,2]
[381966848,1756457438494,-172.6586968,0.000332,117]
[381966849,1756457438504,-500.0,0.00034246,30]
[381966850,1756457438513,-500.0,0.00034246,30]
[381966851,1756457438523,-500.0,0.00034246,30]
[381966852,1756457438535,-500.0,0.00034246,30]
[381966853,1756457438545,-400.97824574,0.00034246,30]
[381966854,1756457438556,-974.0,0.00034436,2]
[381966855,1756457438567,-632.0,0.00034436,2]
[381966856,1756457438578,-625.7468249,0.00034436,2]
[381967292,1756457444066,-232.6790651,0.00031272,2]
[381967294,1756457444076,-160.0,0.00031272,2]
[381967296,1756457444086,-1525.2531751,0.00034436,2]
[381967298,1756457444095,-409.0,0.00034436,2]
[381967300,1756457444105,-199.0,0.00034899,120]
[381967302,1756457444114,-151.6511071,0.00034999,120]
[381967304,1756457444123,-150.212877,0.00036859,5]
[381967306,1756457444132,-350.41,0.00037,2]
[381967308,1756457444142,-281.554,0.00037,47]
[381967310,1756457444151,-3000.52815734,0.00037,14]
[381967312,1756457444160,-307.34433457,0.00037217,5]
[381967314,1756457444169,-500.0,0.00037217,5]
[381967316,1756457444178,-176.73792183,0.00037217,5]
[381967514,1756457446180,-324.38310252,0.00037217,5]
[381967516,1756457446190,-500.0,0.00037217,5]
[381967518,1756457446199,-974.0,0.00037436,2]
[381967520,1756457446208,-632.0,0.00037436,2]
[381967522,1756457446218,-2151.0,0.00037436,2]
[381967524,1756457446227,-409.0,0.00037436,2]
[381967526,1756457446236,-501.1829709,0.00037765,5]
[381967528,1756457446246,-500.0,0.00037826,15]
[381967530,1756457446255,-500.0,0.00037826,2]
[381967532,1756457446264,-515.13537056,0.00037826,15]
[381967534,1756457446274,-500.0,0.00037826,15]
[381967536,1756457446283,-158.88930291,0.00037826,15]
[381967538,1756457446293,-225.56632425,0.00037826,15]
[381967540,1756457446303,-446.96968647,0.00037826,15]
[381967542,1756457446311,-179.13730302,0.00037826,15]
[381967544,1756457446321,-500.0,0.00037826,15]
[381967546,1756457446331,-489.29959091,0.00037827,2]
[381967548,1756457446341,-352.26166742,0.00037827,2]
[381967550,1756457446350,-2354.69940934,0.00037827,2]
[381967552,1756457446359,-199.0,0.000379,120]
[381967554,1756457446369,-199.0,0.000379,120]
[381967556,1756457446379,-877.27,0.00037917,10]
[381967558,1756457446388,-323.95971382,0.00037927,23]
[381967560,1756457446402,-60358.8252024,0.00037927,3]
[381967564,1756457446428,-5491.5,0.00037927,3]
[381967566,1756457446439,-5509.09332017,0.00037927,3]
[381968444,1756457811418,100022.40131867,0.00029895,120]
[381968447,1756457974318,163.226937,0.00013699,2]
[381968457,1756458349138,-653.81200712,0.00019406,2]
[381968458,1756458422476,14.46989841,0.00018363,2]
[381968459,1756458430137,-147.62462036,0.00018363,2]
[381968460,1756458430161,-2364.63411185,0.00019406,2]
[381968464,1756458549087,-5000.0,0.00019212,2]
[381968465,1756458549115,-160.0,0.0002,7]
[381968466,1756458549158,-3308.0,0.0002,10]
[381968467,1756458549200,-183.39546345,0.00021,2]
[381968468,1756458564117,-5000.0,0.0002079,2]
[381968469,1756458564139,-4155.77601355,0.00021,2]
[381968470,1756458564160,-163.226937,0.00023973,2]
[381968471,1756458564180,-216.21406313,0.00024,7]
[381968472,1756458565139,-480.0,0.00025082,2]
[381968532,1756458638386,-425.57542551,0.00027,7]
[381968534,1756458638396,-425.57542551,0.00027,7]
[381968536,1756458638407,-217.30324474,0.00028,7]
[381968538,1756458638420,-217.30324474,0.00028,7]
[381968539,1756458638429,-500.0,0.00028,5]
[381968540,1756458638439,-264.72787776,0.00028,5]
[381968541,1756458638448,-425.57542551,0.00028,10]
[381968543,1756458638458,-425.57542551,0.00028,10]
[381968544,1756458638467,-217.30324474,0.00029,10]
[381968546,1756458638477,-316.32447955,0.00029538,2]
[381968547,1756458638489,-4683.67552045,0.00029538,2]
[381968549,1756458638499,-201.50586115,0.00029836,2]
[381968550,1756458638508,-613.05136465,0.0003,14]
[381968552,1756458638519,-409.0,0.00031344,2]
[381968553,1756458638528,-974.0,0.00031436,2]
[381968555,1756458638538,-121.96378275,0.00031436,2]
[381968556,1756458638551,-2029.03621725,0.00031436,2]
[381968557,1756458638560,-632.0,0.00031436,2]
[381968558,1756458638570,-163.226937,0.00034247,2]
[381968559,1756458638580,-409.0,0.00034344,2]
[381968560,1756458638590,-974.0,0.00034436,2]
[381968561,1756458638600,-2151.0,0.00034436,2]
[381968562,1756458638610,-632.0,0.00034436,2]
[381968563,1756458638621,-199.0,0.00034899,120]
[381968564,1756458638631,-378.003,0.00034899,40]
[381968565,1756458638641,-194.29662769,0.00034899,40]
[381968566,1756458638650,-1569.79960624,0.0003687,2]
[381968567,1756458638662,-322.973597,0.0003688,2]
[381968568,1756458638671,-150.212878,0.00036885,5]
[381968569,1756458638682,-151.28620754,0.00036933,5]
[381968571,1756458638691,-210.54,0.0003696,10]
[381968572,1756458638701,-500.0,0.00036969,15]
[381968573,1756458638710,-500.0,0.00036969,15]
[381968574,1756458638720,-497.94062859,0.00036969,2]
[381968575,1756458638730,-449.87179862,0.00036969,15]
[381968576,1756458638740,-403.75041874,0.00036969,15]
[381968577,1756458638750,-161.97985691,0.00036969,23]
[381968578,1756458638758,-104640.72105164,0.0003697,3]
[381968579,1756458638770,-4335.9999999,0.0003697,3]
[381968580,1756458638782,-5158.89160659,0.0003697,3]
[381968581,1756458638793,-809.12363476,0.0003697,3]
[381968582,1756458638805,-5944.1532267,0.0003697,3]
[381968583,1756458638825,-2404.5748517,0.0003697,3]
[381968584,1756458638836,-1123.3,0.0003697,3]
[381968585,1756458638858,-20699.999997,0.0003697,3]
[381968586,1756458638869,-1726.53539593,0.0003697,3]
[381968609,1756458639670,-4534.07611293,0.0003697,3]
[381968680,1756458643613,-199.0,0.00034799,120]
[381968682,1756458643623,-416.75,0.0003696,10]
[381968684,1756458643632,-276.36701874,0.0003697,3]
[381968687,1756458643647,-2326.41050581,0.0003697,3]
[381968691,1756458643677,-174.24016613,0.0003697,3]
[381968693,1756458643689,-10689.41563706,0.0003697,3]
[381968699,1756458643738,-659.2907214,0.0003697,3]
[381968827,1756458646494,-199.0,0.00034799,120]
[381968828,1756458646503,-211.41151726,0.0003687,2]
[381968829,1756458646512,-511.62203504,0.0003697,3]
[381968830,1756458646523,-275000.0,0.0003697,3]
[381968831,1756458646534,-830.49711006,0.0003697,3]
[381968832,1756458646547,-465.79660852,0.0003697,3]
[381968833,1756458646659,-30671.06879609,0.0003697,3]
[381968834,1756458646669,-15393.0572314,0.0003697,3]
[381968835,1756458646679,-160.0,0.0003697,3]
[381968836,1756458646689,-425.57542551,0.0003697,3]
[381968837,1756458646699,-845.57753514,0.0003697,3]
[381968838,1756458646710,-417.15472785,0.0003697,3]
[381968839,1756458646719,-316.59808461,0.00036973,5]
[381968840,1756458646729,-500.0,0.00036973,5]
[381968841,1756458646738,-500.0,0.00036973,5]
[381968842,1756458646748,-500.0,0.00036973,5]
[381968843,1756458646757,-4001.3,0.00036979,3]
[381968844,1756458646766,-217.30324474,0.0003698,3]
[381968846,1756458646775,-216.21406313,0.0003698,3]
[381968847,1756458646786,-160.0,0.0003698,3]
[381968848,1756458646795,-50385.79450725,0.0003698,3]
[381968849,1756458646806,-461.89842333,0.0003698,3]
[381968850,1756458646819,-13699.0,0.0003698,3]
[381968863,1756458653821,2738.13085091,0.00024953,6]
[381968864,1756458653844,1040.5557663,0.00024953,6]
[381968877,1756458910861,162.940908,0.00013699,2]
[381968880,1756459232202,200.0,0.0002737,120]
[381968882,1756459258381,1800.0,0.0002737,120]
[381968884,1756459442385,430.0,0.00027397,120]
[381968892,1756459551128,-224.28438269,0.00022618,6]
[381968895,1756459632097,-2605.34808908,0.00022618,6]
[381968896,1756459633090,-2170.36752823,0.00022618,6]
[381968897,1756459633110,-960.0,0.00022846,2]
[381968898,1756459633133,-162.940908,0.00026027,2]
[381968899,1756459633153,-380.0,0.00026519,2]
[381968900,1756459633174,-1200.0,0.00026574,2]
[381968901,1756459633194,-300.0,0.00026843,2]
[381968902,1756459633218,-1200.0,0.00026843,2]
[381968903,1756459633241,-300.0,0.00026844,2]
[381968904,1756459633262,-300.0,0.00026844,2]
[381968905,1756459633284,-211.73582754,0.00026844,2]
[381968908,1756459747096,-5000.0,0.00024953,6]
[381968909,1756459747117,-216.21406313,0.00025,10]
[381968910,1756459747136,-9090.57786489,0.00025,2]
[381968911,1756459747156,-3888.17564799,0.00025,2]
[381968912,1756459747176,-2388.67059672,0.00026,30]
[381968913,1756459759796,200.84767604,0.00024953,6]
[381968914,1756459772092,-4799.15232396,0.00024953,6]
[381968915,1756459782540,1144.47991075,0.00024953,6]
[381968949,1756459832467,-640.69884951,0.00024953,6]
[381968980,1756459838852,-3214.82123974,0.00024953,6]
[381968981,1756459838862,-831.0,0.00025999,2]
[381968982,1756459838871,-1583.04275666,0.00026,30]
[381968984,1756459838884,-1127.6,0.00026,30]
[381968985,1756459838899,-13151.39813869,0.00026,30]
[381968986,1756459838908,-425.57542551,0.00026,30]
[381968987,1756459838918,-942.86576334,0.00026844,2]
[381968988,1756459838927,-942.86576334,0.00026844,2]
[381968989,1756459838939,-3721.69637142,0.00026938,2]
[381969012,1756459840859,-6278.30362858,0.00026938,2]
[381969013,1756459840869,-417.15472785,0.00027,7]
[381969014,1756459840878,-417.15472785,0.00027,7]
[381969015,1756459840887,-425.57542551,0.00027,7]
[381969016,1756459840897,-425.57542551,0.00027,7]
[381969017,1756459840906,-501.68343545,0.00028,5]
[381969018,1756459840915,-417.15472785,0.00028,10]
[381969019,1756459841030,-417.15472785,0.00028,10]
[381969020,1756459841039,-845.57753514,0.00028,7]
[381969021,1756459841049,-845.57753514,0.00028,7]
[381969022,1756459841058,-425.57542551,0.00028,10]
[381969023,1756459841067,-425.57542551,0.00028,10]
[381969024,1756459841076,-425.57542551,0.00028,10]
[381969025,1756459841086,-500.0,0.00028725,5]
[381969026,1756459841095,-500.0,0.00028815,5]
[381969027,1756459841104,-845.57753514,0.00029,10]
[381969028,1756459841113,-845.57753514,0.00029,10]
[381969029,1756459841122,-217.30324474,0.00029,10]
[381969030,1756459841131,-232.6790651,0.00029,10]
[381969031,1756459841140,-389.23249397,0.0002905,5]
[381969032,1756459841149,-500.0,0.0002905,5]
[381969033,1756459841158,-380.615,0.000294,22]
[381969034,1756459841167,-258.3788776,0.00029813,2]
[381969035,1756459841176,-347.29,0.00029894,10]
[381969036,1756459841185,-289.41,0.00029894,10]
[381969037,1756459841194,-500.0,0.00029902,2]
[381969038,1756459841204,-315.0,0.00029902,2]
[381969039,1756459841213,-500.0,0.00029902,2]